bitfinex/quotes_SOLUSD_20260211
["timestamp","ask_amount","ask_price","bid_price","bid_amount"]
[1770836075336,50.58,79.904,79.85,12.91269282]
[1770836075539,1.46107663,79.896,79.861,1.49609589]
[1770836075750,50.62,79.895,79.861,1.49609589]
[1770836075954,1.46107663,79.894,79.86,12.91269282]
[1770836076152,1.46107663,79.886,79.84,14.40878871]
[1770836076351,1.46107663,79.886,79.851,1.49609589]
[1770836076555,12.51799461,79.885,79.852,12.52316786]
[1770836076758,12.51799461,79.885,79.851,1.49609589]
[1770836077061,1.46107663,79.884,79.848,12.52377086]
[1770836077262,50.66,79.884,79.848,12.52377086]
[1770836077442,1.46107663,79.883,79.848,12.52377086]
[1770836078770,1.46107663,79.883,79.851,1.49609589]
[1770836078938,12.51690167,79.892,79.861,1.49609589]
[1770836079139,12.51501802,79.904,79.871,1.49609589]
[1770836079471,5.36086188,79.915,79.843,43.83602819]
[1770836079472,50.72,79.91,79.881,1.49609589]
[1770836080162,12.51423494,79.909,79.881,1.49609589]
[1770836081277,1.46107663,79.915,79.88,12.92316471]
[1770836081443,1.46107663,79.913,79.88,12.92316471]
[1770836081751,1.46107663,79.913,79.87,12.92316471]
[1770836081957,1.46107663,79.913,79.871,1.49609589]
[1770836082262,1.46107663,79.913,79.88,12.92316471]
[1770836082644,50.74,79.914,79.89,12.92316471]
[1770836082844,50.74,79.914,79.891,1.49609589]
[1770836083346,11.90275398,79.935,79.9,12.92316471]
[1770836083347,8.00296873,79.935,79.9,12.92316471]
[1770836083545,63.25032101,79.934,79.9,12.92316471]
[1770836083767,1.46107663,79.933,79.9,12.92316471]
[1770836084764,1.46107663,79.931,79.892,12.51689781]
[1770836085162,1.46107663,79.931,79.9,12.92316471]
[1770836085347,1.46107663,79.93,79.901,12.51548791]
[1770836086052,1.46107663,79.928,79.891,1.49609589]
[1770836086258,1.46107663,79.922,79.88,12.92316471]
[1770836086468,1.46107663,79.918,79.87,12.92316471]
[1770836086667,5.36086188,79.909,79.861,50.46]
[1770836086966,1.46107663,79.906,79.87,12.92316471]
[1770836087468,1.46107663,79.899,79.861,12.52175655]
[1770836087670,30.0,79.901,79.871,1.49609589]
[1770836087967,12.51564455,79.9,79.871,1.49609589]
[1770836088465,30.0,79.898,79.871,1.49609589]
[1770836089271,2.47215037,103.54,79.891,12.51705448]
[1770836089272,52.22107663,79.92,79.891,12.51705448]
[1770836089977,50.76,79.921,79.892,1.49609589]
[1770836090751,52.28115963,79.921,79.892,1.49609589]
[1770836091050,1.52115963,79.92,79.891,12.51705448]
[1770836091745,63.27240541,79.921,79.9,12.92316471]
[1770836091944,63.27240541,79.921,79.891,14.00674553]
[1770836092572,1.52115963,79.944,79.911,1.48969105]
[1770836092760,1.52115963,79.944,79.92,12.92316471]
[1770836093070,14.02991575,79.944,79.92,12.92316471]
[1770836093455,14.02991575,79.944,79.911,1.48969105]
[1770836094078,1.52115963,79.943,79.912,12.51376514]
[1770836095187,50.78,79.945,79.902,1.48969105]
[1770836095188,1.52115963,79.941,79.902,1.48969105]
[1770836095346,1.52115963,79.941,79.911,1.48969105]
[1770836095556,1.52115963,79.95,79.921,1.48969105]
[1770836096166,14.02913346,79.949,79.921,1.48969105]
[1770836096469,1.52115963,79.948,79.92,12.92316471]
[1770836097179,1.52115963,79.946,79.91,12.92316471]
[1770836097365,1.52115963,79.945,79.912,12.51368601]
[1770836097757,1.52115963,79.945,79.902,12.51533128]
[1770836098380,43.77900357,79.947,79.92,12.92316471]
[1770836098381,1.52115963,79.943,79.92,12.92316471]
[1770836098558,1.52115963,79.943,79.91,12.92316471]
[1770836099364,12.50906907,79.942,79.911,12.51392173]
[1770836099580,12.50906907,79.942,79.911,14.00361278]
[1770836099774,1.52115963,79.963,79.93,12.92316471]
[1770836100069,1.52115963,79.963,79.931,1.48969105]
[1770836100281,12.70634722,79.96,79.931,1.48969105]
[1770836100656,1.52115963,79.959,79.931,1.48969105]
[1770836101279,1.52115963,79.957,79.923,12.51204284]
[1770836101983,1.52115963,79.957,79.919,12.51265452]
[1770836102283,1.52115963,79.957,79.92,12.92316471]
[1770836102785,1.52115963,79.957,79.919,12.51265452]
[1770836103087,1.52115963,79.957,79.92,12.92316471]
[1770836104181,50.78,79.959,79.931,1.48969105]
[1770836104359,1.72115963,79.97,79.94,12.92316471]
[1770836104564,1.52115963,79.968,79.94,12.92316471]
[1770836105066,1.52115963,79.968,79.93,12.92316471]
[1770836105282,1.52115963,79.966,79.94,12.92316471]
[1770836105460,12.50547114,79.965,79.94,12.92316471]
[1770836105662,1.52115963,79.964,79.933,12.51045775]
[1770836105978,1.52115963,79.964,79.921,31.28088987]
[1770836105979,5.36086188,79.955,79.91,12.92316471]
[1770836106163,1.52115963,79.948,79.91,12.92316471]
[1770836106868,1.52115963,79.948,79.901,31.28863307]
[1770836107065,1.52115963,79.948,79.91,12.92316471]
[1770836107779,1.52115963,79.946,79.901,31.28863307]
[1770836107993,1.52115963,79.946,79.901,32.76444828]
[1770836108163,1.52115963,79.946,79.9,25.43880926]
[1770836108368,5.36086188,79.929,79.882,12.51846473]
[1770836108585,1.52115963,79.928,79.882,12.51846473]
[1770836108965,30.0,79.94,79.901,1.47605955]
[1770836109172,5.36086188,79.939,79.911,1.47630065]
[1770836110085,1.52115963,79.94,79.912,12.51376514]
[1770836110383,14.03069815,79.939,79.911,1.47630065]
[1770836110677,14.03069815,79.939,79.911,13.99015802]
[1770836111767,1.52115963,79.938,79.911,12.51385737]
[1770836112280,1.52115963,79.949,79.92,12.92316471]
[1770836112467,12.50734806,79.953,79.92,12.92316471]
[1770836112670,12.50734806,79.953,79.93,12.92316471]
[1770836112879,50.74,79.957,79.931,1.47702424]
[1770836113388,5.36086188,79.976,79.911,43.79866171]
[1770836113389,106.38530339,80.024,79.951,1.47725424]
[1770836113576,12.50151768,79.991,79.961,1.27725424]
[1770836113777,12.50171898,79.989,79.961,13.78325644]
[1770836114789,1.52115963,79.988,79.956,12.50676707]
[1770836116270,1.52115963,79.986,79.951,12.50766094]
[1770836116570,1.52115963,79.986,79.96,12.92316471]
[1770836118485,1.52115963,79.984,79.94,25.43254674]
[1770836119181,1.52115963,79.978,79.935,12.51004557]
[1770836119380,1.52115963,79.968,79.94,12.92316471]
[1770836119567,1.52115963,79.978,79.941,1.27946218]
[1770836119968,50.7,79.983,79.95,12.92316471]
[1770836120286,1.52115963,79.982,79.95,12.92316471]
[1770836120469,1.4650446,79.981,79.951,12.50766094]
[1770836120669,1.4650446,79.981,79.96,12.92316471]
[1770836121088,13.96801405,79.981,79.96,12.92316471]
[1770836122092,13.96801405,79.981,79.951,12.50766094]
[1770836122289,1.6650446,79.99,79.96,12.92316471]
[1770836122485,14.16674797,79.99,79.96,12.92316471]
[1770836122685,1.4650446,79.989,79.961,12.50609672]
[1770836123477,1.4650446,79.989,79.96,12.92316471]
[1770836123681,43.9556101,79.99,79.95,12.92316471]
[1770836123682,1.4650446,79.987,79.95,12.92316471]
[1770836124177,1.4650446,79.987,79.96,12.92316471]
[1770836124474,0.2,79.99,79.97,12.92316471]
[1770836124674,0.2,79.99,79.98,12.92316471]
[1770836125683,0.2,79.99,79.971,12.50453289]
[1770836125993,0.2,79.99,79.967,12.50507646]
[1770836126190,0.2,79.99,79.97,12.92316471]
[1770836126689,0.2,79.99,79.971,12.50453289]
[1770836126992,0.2,79.99,79.972,1.28134733]
[1770836127990,1.55114251,79.989,79.96,12.92316471]
[1770836128495,1.55114251,79.989,79.96,14.20488094]
[1770836128996,1.55114251,79.989,79.97,12.92316471]
[1770836130403,0.2,79.99,79.971,12.50453289]
[1770836136993,0.2,79.99,79.97,4.81056177]
[1770836138186,0.2,79.99,79.971,12.50453289]
[1770836138803,0.2,79.99,79.972,1.28283737]
[1770836138989,1.55114251,80.019,79.982,1.28283737]
[1770836139189,311.7,80.144,79.971,43.76586512]
[1770836139190,1.55114251,80.048,80.002,1.28294212]
[1770836139386,1.55114251,80.048,80.02,4.81056177]
[1770836139579,1.55114251,80.048,80.03,4.77688918]
[1770836139783,1.55114251,80.059,80.04,4.81056177]
[1770836139980,1.55114251,80.058,80.03,4.81056177]
[1770836140196,1.55114251,80.058,80.031,12.49515812]
[1770836140399,1.55114251,80.056,80.031,12.49515812]
[1770836140598,1.55114251,80.056,80.03,17.30579915]
[1770836140986,1.55114251,80.056,80.03,25.3613084]
[1770836141909,1.55114251,80.056,80.03,11.15407676]
[1770836142286,1.55114251,80.054,80.019,49.92]
[1770836142610,1.55114251,80.054,80.021,1.5e-07]
[1770836142902,1.55114251,80.054,80.03,4.86e-06]
[1770836143115,0.1,80.06,80.04,12.86607102]
[1770836143785,0.1,80.06,80.05,12.86607102]
[1770836144010,0.1,80.06,80.051,12.49203632]
[1770836144306,1.57566073,80.059,80.03,12.86607102]
[1770836145709,1.57566073,80.059,80.02,12.86607102]
[1770836146901,1.57566073,80.059,80.03,12.86607102]
[1770836147607,1.57566073,80.057,80.02,12.86607102]
[1770836147906,1.57566073,80.057,80.019,12.49703195]
[1770836148113,1.57566073,80.057,80.02,12.86607102]
[1770836149106,1.57566073,80.057,80.03,12.86607102]
[1770836150104,1.57566073,80.055,80.03,12.86607102]
[1770836152896,1.57566073,80.053,80.014,43.74234508]
[1770836153103,1.57566073,80.053,80.03,12.86607102]
[1770836153796,1.57566073,80.053,80.02,12.86607102]
[1770836154718,1.57566073,80.051,80.013,12.49785048]
[1770836155103,5.36086188,80.05,80.012,49.86]
[1770836155299,1.57566073,80.043,79.994,12.50093615]
[1770836155503,1.57566073,80.027,79.97,12.86607102]
[1770836155693,1.57566073,80.035,80.0,12.86607102]
[1770836156097,1.57566073,80.035,80.01,12.86607102]
[1770836156719,1.57566073,80.035,80.0,12.86607102]
[1770836157017,1.57566073,80.035,80.001,12.49984375]
[1770836157517,30.0,80.024,80.001,12.49984375]
[1770836158017,30.0,80.024,80.01,12.86607102]
[1770836160221,1.57566073,80.045,80.011,12.49828148]
[1770836160419,1.57566073,80.045,80.02,12.86607102]
[1770836160723,1.57566073,80.045,80.011,12.49828148]
[1770836160907,1.57566073,80.045,80.02,4.80508342]
[1770836161826,1.57566073,80.044,80.011,43.74398519]
[1770836162214,1.57566073,80.04,80.011,12.51833209]
[1770836162418,1.57566073,80.046,80.02,4.80508342]
[1770836162797,1.57566073,80.057,80.03,4.80508342]
[1770836163002,109.32915651,80.109,80.04,4.80508342]
[1770836163003,1.57566073,80.065,80.04,4.80508342]
[1770836163407,1.57566073,80.085,80.051,0.0208709]
[1770836163605,1.58609588,80.078,80.02,4.61729252]
[1770836163845,30.0,80.052,80.04,4.80508342]
[1770836164227,30.0,80.052,80.041,12.49359703]
[1770836164408,30.0,80.052,80.037,12.4941308]
[1770836164607,30.0,80.052,80.032,12.4949034]
[1770836164803,1.58609588,80.047,80.028,12.49553092]
[1770836165023,1.58609588,80.047,80.01,4.80508342]
[1770836165225,1.58609588,80.047,80.0,4.80508342]
[1770836165613,1.58609588,80.046,80.0,4.80508342]
[1770836166016,1.58609588,80.046,80.01,4.80508342]
[1770836166210,1.58609588,80.046,80.0,4.80508342]
[1770836166412,1.58609588,80.044,80.001,12.49984375]
[1770836166926,1.58609588,80.044,80.01,12.87261783]
[1770836167127,1.58609588,80.044,80.02,12.87261783]
[1770836168207,1.58609588,80.054,80.02,12.87261783]
[1770836168606,5.36086188,80.048,80.01,12.87261783]
[1770836168810,1.58609588,80.045,80.009,12.49844106]
[1770836169931,1.58609588,80.031,79.98,12.87261783]
[1770836170128,30.0,80.043,79.98,12.87261783]
[1770836170129,1.58609588,80.025,79.98,12.87261783]
[1770836170911,1.58609588,80.019,79.969,12.50484562]
[1770836171108,1.58609588,80.005,79.964,12.5054842]
[1770836171528,1.58609588,80.015,79.98,12.87261783]
[1770836173025,1.58609588,80.015,79.981,12.50296945]
[1770836173431,1.58609588,80.013,79.981,12.50296945]
[1770836174420,1.58609588,80.013,79.99,12.87261783]
[1770836174935,12.49524647,80.031,80.0,12.87261783]
[1770836175230,1.58609588,80.054,80.02,12.87261783]
[1770836175414,1.58609588,80.054,80.01,12.87261783]
[1770836175615,1.58609588,80.052,80.01,12.87261783]
[1770836176234,1.58609588,80.052,80.02,12.87261783]
[1770836176425,1.58609588,80.05,80.02,12.87261783]
[1770836177125,1.58609588,80.048,80.01,12.87261783]
[1770836177324,1.58609588,80.048,80.02,12.87261783]
[1770836177726,1.58609588,80.044,80.01,12.87261783]
[1770836179233,43.72321952,80.049,80.01,12.87261783]
[1770836179234,1.58609588,80.042,80.01,12.87261783]
[1770836179626,1.58609588,80.042,80.011,12.49828148]
[1770836179833,1.58609588,80.042,80.01,12.87261783]
[1770836180028,1.58609588,80.042,80.011,12.49828148]
[1770836180236,1.58609588,80.042,80.01,12.87261783]
[1770836180948,1.58609588,80.042,80.011,12.49828148]
[1770836184232,12.49359703,80.041,80.01,12.87261783]
[1770836184554,1.58609588,80.04,80.01,25.37102394]
[1770836184747,1.58609588,80.048,80.02,12.87261783]
[1770836184954,1.58609588,80.043,80.02,12.87261783]
[1770836185650,1.58609588,80.043,80.006,12.49905138]
[1770836186051,1.58609588,80.043,80.01,12.87261783]
[1770836186557,1.58609588,80.041,80.01,25.37099897]
[1770836187436,1.58609588,80.039,80.01,25.37099897]
[1770836188832,1.58609588,80.029,79.98,12.87261783]
[1770836189052,1.58609588,80.025,79.98,12.87261783]
[1770836189554,5.36086188,80.016,79.96,12.87261783]
[1770836189858,1.58609588,80.005,79.98,12.87261783]
[1770836190056,1.58609588,80.003,79.97,12.87261783]
[1770836190554,29.97979968,80.004,79.99,12.87261783]
[1770836190855,1.58609588,80.022,79.99,12.87261783]
[1770836191055,1.58609588,80.022,80.0,12.87261783]
[1770836191254,1.58609588,80.022,79.99,12.87261783]
[1770836191952,1.58609588,80.022,79.991,12.5014064]
[1770836192254,1.59619604,80.02,79.98,12.87261783]
[1770836192953,1.59619604,80.02,79.99,12.87261783]
[1770836193535,1.59619604,80.02,79.972,43.76531785]
[1770836193752,1.59619604,80.02,79.98,12.87261783]
[1770836193953,1.59619604,80.018,79.99,12.87261783]
[1770836195951,12.49734431,80.017,79.981,12.50296945]
[1770836196157,1.59619604,80.016,79.99,12.87261783]
[1770836198061,1.59619604,80.016,79.991,12.5014064]
[1770836198263,1.59619604,80.036,80.0,12.87261783]
[1770836198469,1.59619604,80.034,80.01,12.87261783]
[1770836198669,1.59619604,80.034,79.991,12.5014064]
[1770836199669,1.59619604,80.034,80.0,12.87261783]
[1770836199966,1.59619604,80.032,79.99,12.87261783]
[1770836200139,1.59619604,80.032,80.0,12.87261783]
[1770836200542,1.59619604,80.032,79.99,12.87261783]
[1770836202663,1.59619604,80.024,79.99,12.87261783]
[1770836202857,1.59619604,80.024,79.99,12.87810679]
[1770836203240,1.59619604,80.024,79.983,49.46]
[1770836203443,1.59619604,80.015,79.976,12.50362766]
[1770836204137,5.36086188,80.012,79.958,12.50656594]
[1770836204342,5.36086188,80.012,79.903,106.38010313]
[1770836204343,5.36086188,80.0,79.946,12.50844319]
[1770836204563,1.59619604,79.993,79.951,12.50766094]
[1770836205469,1.59619604,79.992,79.951,12.50766094]
[1770836206764,1.59619604,79.99,79.951,12.50766094]
[1770836208560,1.59619604,79.988,79.951,12.50766094]
[1770836209562,1.59619604,79.986,79.96,12.87810679]
[1770836209952,1.59619604,79.986,79.95,12.87810679]
[1770836210955,1.59619604,79.984,79.95,12.87810679]
[1770836211466,1.59619604,79.983,79.951,12.50766094]
[1770836212376,1.59619604,79.981,79.935,49.46]
[1770836212663,1.59619604,79.975,79.931,12.51079055]
[1770836213367,12.50453289,79.971,79.931,12.51079055]
[1770836213564,1.59619604,79.97,79.931,12.51079055]
[1770836213874,1.59619604,79.966,79.926,12.51142115]
[1770836214066,1.59619604,79.964,79.926,12.51142115]
[1770836214443,1.59619604,79.961,79.926,12.51142115]
[1770836215249,1.59619604,79.961,79.93,12.87810679]
[1770836215449,12.50640953,79.959,79.931,12.51079055]
[1770836216064,14.10260557,79.959,79.931,12.51079055]
[1770836216248,1.59619604,79.958,79.931,12.51079055]
[1770836216448,30.0,79.957,79.931,12.51079055]
[1770836216966,30.0,79.957,79.94,12.87810679]
[1770836217164,1.59619604,79.963,79.931,12.51079055]
[1770836219550,1.59619604,79.961,79.931,12.51079055]
[1770836219858,1.59619604,79.961,79.927,12.51127375]
[1770836220066,1.59619604,79.959,79.927,12.51127375]
[1770836220267,1.59619604,79.955,79.92,0.2]
[1770836220572,1.59619604,79.955,79.921,12.51235595]
[1770836220774,1.59619604,79.953,79.92,0.2]
[1770836221469,1.59619604,79.953,79.92,12.71247498]
[1770836221850,1.59619604,79.95,79.92,12.71247498]
[1770836222048,1.59619604,79.948,79.896,12.51618186]
[1770836222249,1.59619604,79.948,79.89,0.2]
[1770836222250,1.59619604,79.935,79.89,0.2]
[1770836222449,1.59619604,79.925,79.89,0.2]
[1770836222759,1.59619604,79.909,79.88,12.87810679]
[1770836222954,1.59619604,79.909,79.871,12.5201888]
[1770836222955,1.59619604,79.918,79.89,12.87810679]
[1770836223155,1.59619604,79.934,79.9,12.87810679]
[1770836223369,1.59619604,79.932,79.9,12.87810679]
[1770836223562,1.59619604,79.932,79.876,49.48]
[1770836223563,1.59619604,79.932,79.91,12.87810679]
[1770836224564,1.59619604,79.947,79.92,12.87810679]
[1770836224771,1.59619604,79.947,79.911,12.51392173]
[1770836224961,1.59619604,79.947,79.92,12.87810679]
[1770836226674,1.59619604,79.945,79.91,12.87810679]
[1770836226850,1.59619604,79.945,79.92,12.87810679]
[1770836227575,1.59619604,79.945,79.908,31.28565625]
[1770836227576,1.59619604,79.956,79.93,12.87810679]
[1770836228282,1.59619604,79.954,79.91,12.87810679]
[1770836228664,1.59619604,79.954,79.92,12.87810679]
[1770836229955,5.36086188,79.955,79.92,12.87810679]
[1770836230275,1.59619604,79.963,79.904,49.46]
[1770836230276,14.10230715,79.961,79.93,12.87810679]
[1770836230465,1.59619604,79.967,79.94,12.87810679]
[1770836230854,1.59619604,79.967,79.95,12.87810679]
[1770836231279,1.59619604,79.967,79.94,12.87810679]
[1770836232259,1.59619604,79.967,79.921,49.46]
[1770836232260,1.59619604,79.993,79.96,12.87810679]
[1770836232456,1.59619604,79.993,79.941,43.78228943]
[1770836232457,1.59619604,79.993,79.97,12.87810679]
[1770836232660,1.59619604,79.993,79.941,43.78228943]
[1770836232861,1.59619604,79.993,79.95,12.87810679]
[1770836233074,1.59619604,79.993,79.96,12.87810679]
[1770836234484,1.59619604,79.991,79.96,12.87810679]
[1770836234863,1.59619604,79.991,79.96,4.81203016]
[1770836235474,1.59619604,79.99,79.96,4.81203016]
[1770836236993,1.59619604,79.99,79.957,12.50658505]
[1770836236994,1.59619604,79.984,79.94,4.81203016]
[1770836237292,1.59619604,79.984,79.96,4.81203016]
[1770836237680,50.96,79.985,79.94,4.61729252]
[1770836237887,49.96226804,80.061,79.94,4.61729252]
[1770836237888,1.59619604,79.994,79.97,4.81203016]
[1770836238091,6.53597694,80.013,79.98,4.81203016]
[1770836238381,12.49812528,80.012,79.99,4.81203016]
[1770836238565,1.59619604,80.014,79.964,49.34]
[1770836238764,1.59619604,80.013,79.97,4.81203016]
[1770836239082,1.59619604,80.011,79.98,12.88441693]
[1770836239895,1.59619604,80.011,79.97,12.88441693]
[1770836240380,1.59619604,80.009,79.971,12.50453289]
[1770836241188,12.49843769,80.01,79.955,49.32]
[1770836241189,5.36086188,80.008,79.955,49.32]
[1770836241398,1.59619604,80.005,79.96,12.88441693]
[1770836241569,1.59619604,79.995,79.955,49.32]
[1770836241891,1.59619604,79.995,79.952,12.50742421]
[1770836242087,1.59619604,79.985,79.95,12.88441693]
[1770836242392,50.96,79.986,79.96,12.88441693]
[1770836242598,1.59619604,79.985,79.96,12.88441693]
[1770836243270,30.0,79.983,79.96,12.88441693]
[1770836245192,1.59619604,79.981,79.954,12.50704243]
[1770836245388,30.0,79.979,79.954,12.50704243]
[1770836245575,30.0,79.979,79.96,12.88441693]
[1770836247770,30.0,79.979,79.96,25.39055204]
[1770836247970,30.0,79.979,79.96,12.88441693]
[1770836248394,30.0,79.979,79.951,12.50766094]
[1770836248395,1.59619604,79.978,79.951,12.50766094]
[1770836249192,1.59619604,79.978,79.96,12.88441693]
[1770836250293,12.50359478,79.977,79.951,12.50766094]
[1770836250478,1.59619604,79.976,79.951,12.50766094]
[1770836250675,1.59619604,79.976,79.941,0.02263436]
[1770836250676,1.59619604,79.976,79.943,12.5089126]
[1770836250882,1.59619604,79.974,79.943,12.5089126]
[1770836251802,1.59619604,79.972,79.941,0.02263436]
[1770836252876,1.59619604,79.972,79.95,12.88441693]
[1770836253082,29.91,79.97,79.95,12.88441693]
[1770836254494,44.0109668,79.97,79.95,12.88441693]
[1770836254700,1.59619604,79.969,79.95,12.88441693]
[1770836254905,29.91,79.968,79.948,12.50808014]
[1770836256496,1.59619604,79.967,79.941,12.50922555]
[1770836256697,1.59619604,79.965,79.941,12.50922555]
[1770836258191,30.0,79.964,79.941,12.50922555]
[1770836258592,30.0,79.964,79.942,0.02447634]
[1770836259194,30.0,79.964,79.95,4.81329275]
[1770836259595,1.59619604,79.967,79.94,4.81329275]
[1770836259795,1.59619604,79.967,79.941,0.02469977]
[1770836261509,1.59619604,79.967,79.941,12.50922555]
[1770836261712,1.59619604,79.965,79.94,17.32260633]
[1770836262392,1.59619604,79.965,79.941,0.02534904]
[1770836262610,1.59619604,79.962,79.94,17.32260633]
[1770836262790,1.59619604,79.962,79.934,0.02534904]
[1770836262791,1.59619604,79.962,79.919,12.51266907]
[1770836262992,1.59619604,79.962,79.921,0.02534904]
[1770836263512,1.59619604,79.962,79.93,4.81626281]
[1770836263717,1.59619604,79.956,79.93,4.81626281]
[1770836263904,1.59619604,79.956,79.931,12.51079055]
[1770836264217,30.0,79.958,79.941,0.02575159]
[1770836264714,51.32,79.971,79.931,12.51079055]
[1770836264715,1.59619604,79.952,79.931,12.51079055]
[1770836264894,31.50619604,79.953,79.931,12.51079055]
[1770836265397,1.59619604,79.963,79.94,4.81626281]
[1770836265592,1.59619604,79.963,79.931,12.53674926]
[1770836265799,1.59619604,79.961,79.931,12.51079055]
[1770836268109,31.26189992,79.97,79.931,12.51079055]
[1770836268110,1.59619604,79.97,79.941,0.02640119]
[1770836268691,1.59619604,79.97,79.95,4.81626281]
[1770836270827,1.60221407,79.968,79.943,12.50883691]
[1770836271616,1.60221407,79.968,79.923,31.28010096]
[1770836271802,1.60221407,79.964,79.922,49.42]
[1770836272218,5.36086188,79.957,79.917,12.51287254]
[1770836272399,1.60221407,79.954,79.917,12.51287254]
[1770836272597,43.76695968,79.969,79.89,4.81626281]
[1770836272598,5.36086188,79.947,79.89,4.81626281]
[1770836272808,1.60221407,79.934,79.88,4.81626281]
[1770836273008,1.60221407,79.934,79.881,12.51862144]
[1770836273315,1.60221407,79.934,79.89,12.91383849]
[1770836273512,1.60221407,79.934,79.881,12.51862144]
[1770836273712,1.60221407,79.934,79.88,25.43261665]
[1770836274511,1.60221407,79.926,79.88,25.43261665]
[1770836274717,1.60221407,79.914,79.88,12.91383849]
[1770836274902,1.60221407,79.914,79.879,12.51888263]
[1770836274903,1.60221407,79.912,79.872,0.02798471]
[1770836275502,1.60221407,79.912,79.88,12.91383849]
[1770836277518,1.60221407,79.917,79.882,0.0285382]
[1770836277722,1.60221407,79.917,79.881,12.51862144]
[1770836279322,1.60221407,79.917,79.882,0.0289087]
[1770836279623,1.60221407,79.915,79.882,0.0289087]
[1770836280318,1.60221407,79.915,79.881,12.51862144]
[1770836280623,1.60221407,79.915,79.882,0.029066]
[1770836281227,1.60221407,79.915,79.881,12.51862144]
[1770836281719,1.60221407,79.915,79.881,0.02924944]
[1770836282114,12.51345196,79.914,79.881,0.02924944]
[1770836282413,1.60221407,79.913,79.881,0.02924944]
[1770836284107,1.60221407,79.925,79.891,0.02958042]
[1770836284730,1.60221407,79.925,79.88,12.91383849]
[1770836284927,1.60221407,79.925,79.882,0.02975363]
[1770836286030,1.60221407,79.923,79.881,12.51862144]
[1770836286211,1.60221407,79.923,79.882,0.02990473]
[1770836287831,1.60221407,79.923,79.881,12.51862144]
[1770836288128,1.60221407,79.923,79.867,31.30181442]
[1770836288129,1.60221407,79.912,79.831,6.37799778]
[1770836288333,98.45878796,79.922,79.831,4.53646424]
[1770836288334,5.36086188,79.894,79.831,4.53646424]
[1770836288523,4.61729252,79.867,79.83,0.13244332]
[1770836288730,1.60221407,79.905,79.83,0.13244332]
[1770836288731,4.61729252,79.869,79.83,0.13244332]
[1770836289035,5.36086188,79.865,79.83,1e-08]
[1770836289330,9.9781544,79.862,79.82,0.1]
[1770836289629,9.9781544,79.862,79.81,1e-08]
[1770836290229,9.9781544,79.857,79.81,1e-08]
[1770836290912,5.36086188,79.855,79.81,1.61138857]
[1770836291109,5.36086188,79.853,79.81,1.61138857]
[1770836292110,5.36086188,79.851,79.81,1.61138857]
[1770836292419,5.36086188,79.851,79.812,1.61138856]
[1770836294120,5.36086188,79.849,79.812,1.61138856]
[1770836294329,1.60221407,79.847,79.8,4.82613392]
[1770836296117,5.36086188,79.843,79.792,43.86404652]
[1770836296440,5.36086188,79.843,79.79,13.01383849]
[1770836296441,1.60221407,79.822,79.79,0.1]
[1770836296734,1.60221407,79.818,79.79,0.1]
[1770836297334,1.60221407,79.818,79.79,1.5744214]
[1770836297534,51.56,79.821,79.79,1.5744214]
[1770836297839,53.16221407,79.821,79.79,1.5744214]
[1770836298038,1.60221407,79.82,79.79,1.5744214]
[1770836298335,1.60221407,79.818,79.79,0.1]
[1770836298511,49.21007071,79.819,79.791,1.4744214]
[1770836298720,12.52834538,79.819,79.791,1.4744214]
[1770836299335,1.60221407,79.818,79.791,1.4744214]
[1770836299532,43.84920883,79.819,79.791,1.4744214]
[1770836299533,12.52834538,79.819,79.791,1.4744214]
[1770836299732,51.56,79.821,79.791,1.4744214]
[1770836299733,50.07781597,79.821,79.791,1.4744214]
[1770836300321,50.07781597,79.821,79.793,1.4744214]
[1770836301452,50.07781597,79.821,79.795,1.58734153]
[1770836302744,12.52818842,79.82,79.795,1.58734153]
[1770836302952,1.49586869,79.819,79.791,1.58734153]
[1770836303147,50.07781597,79.821,79.792,1.58734153]
[1770836303446,50.07781597,79.821,79.794,1.58734153]
[1770836304841,5.36086188,79.846,79.801,1.58734153]
[1770836304842,12.52536386,79.838,79.801,1.58734153]
[1770836305037,12.52515111,79.84,79.801,1.58734153]
[1770836305660,1.49586869,79.839,79.803,1.58734153]
[1770836305857,1.49586869,79.837,79.803,1.58734153]
[1770836307151,12.52515111,79.84,79.803,1.58734153]
[1770836307359,5.36086188,79.839,79.803,1.58734153]
[1770836307542,12.52515111,79.84,79.803,1.58734153]
[1770836307746,12.52515111,79.84,79.805,1.53523425]
[1770836307941,1.52282368,79.839,79.805,1.53523425]
[1770836309435,12.52515111,79.84,79.805,1.53523425]
[1770836309636,51.64,79.843,79.811,1.53523425]
[1770836309842,12.52343734,79.851,79.821,1.53523425]
[1770836310055,53.22282368,79.856,79.812,43.85305467]
[1770836310056,51.7,79.856,79.831,1.53523425]
[1770836310263,53.22282368,79.869,79.831,1.53523425]
[1770836311738,1.52282368,79.866,79.831,1.53523425]
[1770836311955,5.36086188,79.859,79.821,1.53523425]
[1770836312142,1.52282368,79.858,79.821,1.53523425]
[1770836313747,1.52282368,79.856,79.822,1.53523425]
[1770836313946,1.52282368,79.854,79.822,1.53523425]
[1770836316855,1.52282368,79.854,79.82,12.52811155]